[Event "44th Chess Olympiad Women 2022"]
[Site "Chennai"]
[Date "2022.08.06"]
[Round "8.42"]
[White "Abrorova, Sabrina"]
[Black "Cho, Hung-Ling"]
[Result "1-0"]
[WhiteElo "1799"]
[BlackElo "1576"]
[Annotator "NA RC"]
[PlyCount "71"]
[EventDate "2022.??.??"]
[TimeControl "60"]

1. d4 {[%emt 0:00:11]} Nf6 {[%emt 0:00:04]} 2. Nf3 {[%emt 0:00:13]} e6 {
[%emt 0:00:06]} 3. c4 {[%emt 0:00:17]} d5 {[%emt 0:00:04]} 4. Bg5 {[%emt 0:00:
00]} dxc4 {[%emt 0:00:07]} 5. a4 {[%emt 0:01:00]} c5 {[%emt 0:00:44]} 6. e3 {
[%emt 0:06:02]} Qa5+ {[%emt 0:02:08]} 7. Qd2 {[%emt 0:11:59]} Nc6 {[%emt 0:00:
00]} 8. Nc3 {[%emt 0:04:51]} cxd4 {[%emt 0:04:38]} 9. exd4 {[%emt 0:00:24]} Bb4
{[%emt 0:03:11]} 10. Bxf6 {[%emt 0:01:30]} gxf6 {[%emt 0:01:24]} 11. Bxc4 {
[%emt 0:00:32]} Rg8 {[%emt 0:11:47]} 12. O-O {[%emt 0:04:14]} Qh5 {[%emt 0:00:
00]} 13. Be2 {[%emt 0:12:15]} Qg4 {[%emt 0:23:27]} 14. g3 {[%emt 0:00:49]} Bd7
{[%emt 0:22:40]} 15. Rfd1 {[%emt 0:12:01]} O-O-O {[%emt 0:09:27]} 16. Ne5 {
[%emt 0:21:06]} Qg7 {[%emt 0:02:13]} 17. Nxd7 {[%emt 0:00:37]} Rxd7 {[%emt 0:
00:00]} 18. Qe3 {[%emt 0:03:55]} Rgd8 {[%emt 0:06:01]} 19. d5 {[%emt 0:07:22]}
exd5 {[%emt 0:01:20]} 20. Qf4 {[%emt 0:00:14]} Bd6 {[%emt 0:01:15]} 21. Qg4 {
[%emt 0:00:13]} Qf8 {[%emt 0:00:39]} 22. Rxd5 {[%emt 0:05:21]} Kb8 {[%emt 0:00:
00]} 23. Rad1 {[%emt 0:00:39]} Qe7 {[%emt 0:00:29]} 24. Bb5 {[%emt 0:02:35]}
Rc7 {[%emt 0:00:29]} 25. Ne4 {[%emt 0:01:47]} Ne5 {[%emt 0:00:31]} 26. Qf5 {
[%emt 0:00:34]} Rg8 {[%emt 0:00:31]} 27. Rxd6 {[%emt 0:00:30]} Rcc8 {[%emt 0:
00:00]} 28. Qxf6 {[%emt 0:00:44]} Ng6 {[%emt 0:00:29]} 29. Qxe7 {[%emt 0:00:36]
} Nxe7 {[%emt 0:00:02]} 30. Rd7 {[%emt 0:00:02]} Ng6 {[%emt 0:00:53]} 31. Rxf7
{[%emt 0:00:50]} a6 {[%emt 0:00:35]} 32. Rdd7 {[%emt 0:00:58]} Rc1+ {[%emt 0:
00:00]} 33. Bf1 {[%emt 0:00:02]} Ne5 {[%emt 0:00:23]} 34. Rxb7+ {[%emt 0:00:08]
} Kc8 {[%emt 0:00:33]} 35. Nd6+ {[%emt 0:00:14]} Kd8 {[%emt 0:00:02]} 36. Rb8+
{[%emt 0:00:11]} 1-0

[Event "44th Chess Olympiad Women 2022"]
[Site "Chennai"]
[Date "2022.08.06"]
[Round "8.42"]
[White "Hotami, Mutriba"]
[Black "Shih, Ching-An"]
[Result "1-0"]
[WhiteElo "1846"]
[BlackElo "1582"]
[Annotator "NA RC"]
[PlyCount "159"]
[EventDate "2022.??.??"]
[TimeControl "60"]

1. e4 {[%emt 0:00:03]} e5 {[%emt 0:00:13]} 2. Nf3 {[%emt 0:00:05]} Nc6 {
[%emt 0:00:06]} 3. Bb5 {[%emt 0:00:04]} a6 {[%emt 0:00:10]} 4. Ba4 {[%emt 0:00:
00]} Nf6 {[%emt 0:00:15]} 5. O-O {[%emt 0:00:05]} b5 {[%emt 0:00:17]} 6. Bb3 {
[%emt 0:00:07]} Be7 {[%emt 0:00:09]} 7. Re1 {[%emt 0:00:33]} O-O {[%emt 0:00:
00]} 8. c3 {[%emt 0:01:04]} d6 {[%emt 0:00:14]} 9. d4 {[%emt 0:00:15]} Bg4 {
[%emt 0:01:48]} 10. Be3 {[%emt 0:00:40]} exd4 {[%emt 0:07:04]} 11. cxd4 {
[%emt 0:00:12]} Na5 {[%emt 0:00:13]} 12. Bc2 {[%emt 0:00:16]} Nc4 {[%emt 0:00:
00]} 13. Bc1 {[%emt 0:00:19]} c5 {[%emt 0:00:46]} 14. b3 {[%emt 0:03:13]} Nb6 {
[%emt 0:00:43]} 15. Bb2 {[%emt 0:01:23]} Bh5 {[%emt 0:01:56]} 16. Nbd2 {
[%emt 0:01:02]} Rc8 {[%emt 0:00:33]} 17. Rc1 {[%emt 0:02:56]} Re8 {[%emt 0:00:
00]} 18. Bb1 {[%emt 0:13:07]} Bf8 {[%emt 0:04:26]} 19. d5 {[%emt 0:05:57]} Nbd7
{[%emt 0:03:34]} 20. Nf1 {[%emt 0:11:18]} Bg6 {[%emt 0:15:06]} 21. Ng3 {
[%emt 0:01:38]} Nh5 {[%emt 0:06:40]} 22. Nxh5 {[%emt 0:20:22]} Bxh5 {[%emt 0:
00:00]} 23. Qd3 {[%emt 0:00:33]} Bg6 {[%emt 0:01:41]} 24. Nd2 {[%emt 0:02:19]}
Be7 {[%emt 0:06:54]} 25. f4 {[%emt 0:02:34]} Bf6 {[%emt 0:00:11]} 26. Bxf6 {
[%emt 0:01:00]} Qxf6 {[%emt 0:00:19]} 27. Qf3 {[%emt 0:05:33]} h6 {[%emt 0:00:
00]} 28. f5 {[%emt 0:02:29]} Bh7 {[%emt 0:00:10]} 29. Qf2 {[%emt 0:08:04]} Ne5
{[%emt 0:00:56]} 30. Nf3 {[%emt 0:00:29]} Nd7 {[%emt 0:02:14]} 31. g4 {[%emt 0:
00:00]} Ne5 {[%emt 0:00:13]} 32. Nxe5 {[%emt 0:00:46]} Rxe5 {[%emt 0:00:09]}
33. h4 {[%emt 0:00:31]} Rce8 {[%emt 0:01:28]} 34. Qg3 {[%emt 0:03:00]} g5 {
[%emt 0:01:40]} 35. hxg5 {[%emt 0:04:26]} Qxg5 {[%emt 0:00:06]} 36. Kg2 {
[%emt 0:01:18]} Qd2+ {[%emt 0:03:27]} 37. Qf2 {[%emt 0:01:43]} Qg5 {[%emt 0:00:
00]} 38. Qg3 {[%emt 0:00:19]} Qd2+ {[%emt 0:01:10]} 39. Kf3 {[%emt 0:02:04]}
Kg7 {[%emt 0:01:42]} 40. Qf4 {[%emt 0:01:53]} Qxf4+ {[%emt 0:02:35]} 41. Kxf4 {
[%emt 0:30:02]} f6 {[%emt 0:05:18]} 42. Rh1 {[%emt 0:00:00]} Bg8 {[%emt 0:00:
00]} 43. Bd3 {[%emt 0:00:00]} Bf7 {[%emt 0:00:00]} 44. Rc2 {[%emt 0:00:00]} Rh8
{[%emt 0:00:00]} 45. a4 {[%emt 0:00:00]} Be8 {[%emt 0:00:01]} 46. axb5 {
[%emt 0:00:00]} Bxb5 {[%emt 0:00:17]} 47. Bxb5 {[%emt 0:00:00]} axb5 {[%emt 0:
00:00]} 48. Ra2 {[%emt 0:00:00]} Rhe8 {[%emt 0:00:27]} 49. Ra7+ {[%emt 0:00:00]
} R8e7 {[%emt 0:00:18]} 50. Rxe7+ {[%emt 0:00:00]} Rxe7 {[%emt 0:00:04]} 51.
Ra1 {[%emt 0:00:00]} Kf7 {[%emt 0:01:32]} 52. Ra6 {[%emt 0:00:00]} Rd7 {
[%emt 0:00:07]} 53. Ke3 {[%emt 0:00:00]} b4 {[%emt 0:01:03]} 54. Kd3 {[%emt 0:
00:00]} Ke7 {[%emt 0:01:02]} 55. Kc4 {[%emt 0:00:00]} Rb7 {[%emt 0:12:16]} 56.
Ra8 {[%emt 0:00:00]} Kf7 {[%emt 0:00:06]} 57. Rd8 {[%emt 0:00:00]} Rb6 {
[%emt 0:01:04]} 58. Rd7+ {[%emt 0:00:00]} Kg8 {[%emt 0:00:17]} 59. Rc7 {
[%emt 0:00:00]} Ra6 {[%emt 0:00:31]} 60. Rc6 {[%emt 0:00:00]} Ra1 {[%emt 0:00:
00]} 61. Rxd6 {[%emt 0:00:00]} Rc1+ {[%emt 0:01:16]} 62. Kb5 {[%emt 0:00:00]}
c4 {[%emt 0:00:41]} 63. Kxb4 {[%emt 0:00:00]} c3 {[%emt 0:00:10]} 64. Rxf6 {
[%emt 0:00:18]} c2 {[%emt 0:00:10]} 65. Rc6 {[%emt 0:00:02]} Re1 {[%emt 0:00:
00]} 66. Rxc2 {[%emt 0:00:06]} Rxe4+ {[%emt 0:00:05]} 67. Rc4 {[%emt 0:00:08]}
Re8 {[%emt 0:00:20]} 68. d6 {[%emt 0:00:31]} Rb8+ {[%emt 0:00:56]} 69. Kc5 {
[%emt 0:00:27]} Kf7 {[%emt 0:00:23]} 70. d7 {[%emt 0:01:10]} Ke7 {[%emt 0:00:
00]} 71. Kc6 {[%emt 0:00:08]} Rxb3 {[%emt 0:01:57]} 72. Re4+ {[%emt 0:00:07]}
Kf7 {[%emt 0:00:07]} 73. d8=Q {[%emt 0:00:12]} Rc3+ {[%emt 0:00:05]} 74. Kb5 {
[%emt 0:00:13]} Rb3+ {[%emt 0:00:15]} 75. Kc4 {[%emt 0:00:18]} Rh3 {[%emt 0:00:
00]} 76. Re7+ {[%emt 0:00:25]} Kf6 {[%emt 0:00:05]} 77. Re6+ {[%emt 0:00:05]}
Kf7 {[%emt 0:00:12]} 78. Qf6+ {[%emt 0:00:05]} Kg8 {[%emt 0:00:08]} 79. Re8+ {
[%emt 0:00:08]} Kh7 {[%emt 0:00:04]} 80. Qf7# {[%emt 0:00:05]} 1-0

[Event "44th Chess Olympiad Women 2022"]
[Site "Chennai"]
[Date "2022.08.06"]
[Round "8.42"]
[White "Tsai, Sophie Yi-Hsuan"]
[Black "Antonova, Nadezhda"]
[Result "0-1"]
[WhiteElo "1131"]
[BlackElo "1832"]
[Annotator "NA RC"]
[PlyCount "92"]
[EventDate "2022.??.??"]
[TimeControl "60"]

1. e4 {[%emt 0:00:03]} c6 {[%emt 0:00:14]} 2. d4 {[%emt 0:00:04]} d5 {[%emt 0:
00:00]} 3. exd5 {[%emt 0:00:05]} cxd5 {[%emt 0:00:03]} 4. Bd3 {[%emt 0:00:07]}
Nc6 {[%emt 0:00:12]} 5. c3 {[%emt 0:00:04]} Nf6 {[%emt 0:00:29]} 6. Bf4 {
[%emt 0:00:12]} Bg4 {[%emt 0:00:54]} 7. Qb3 {[%emt 0:00:08]} Qd7 {[%emt 0:00:
00]} 8. Nd2 {[%emt 0:01:48]} e6 {[%emt 0:01:27]} 9. Ngf3 {[%emt 0:00:46]} Bxf3
{[%emt 0:01:24]} 10. Nxf3 {[%emt 0:00:13]} Bd6 {[%emt 0:00:36]} 11. Bxd6 {
[%emt 0:11:09]} Qxd6 {[%emt 0:00:01]} 12. O-O {[%emt 0:02:31]} O-O {[%emt 0:00:
00]} 13. Rfe1 {[%emt 0:03:15]} Nd7 {[%emt 0:05:59]} 14. Rad1 {[%emt 0:23:59]}
g6 {[%emt 0:01:08]} 15. Qc2 {[%emt 0:00:21]} Qf4 {[%emt 0:04:20]} 16. Qd2 {
[%emt 0:04:02]} Qxd2 {[%emt 0:00:51]} 17. Rxd2 {[%emt 0:00:14]} Rab8 {[%emt 0:
00:00]} 18. Bb5 {[%emt 0:04:14]} Rfc8 {[%emt 0:07:08]} 19. Bxc6 {[%emt 0:00:38]
} Rxc6 {[%emt 0:00:23]} 20. Ne5 {[%emt 0:02:38]} Nxe5 {[%emt 0:00:11]} 21. dxe5
{[%emt 0:00:41]} b5 {[%emt 0:00:16]} 22. a3 {[%emt 0:03:16]} Rc4 {[%emt 0:00:
00]} 23. f3 {[%emt 0:06:42]} a5 {[%emt 0:00:52]} 24. Kf2 {[%emt 0:00:34]} b4 {
[%emt 0:00:43]} 25. axb4 {[%emt 0:00:20]} axb4 {[%emt 0:00:03]} 26. cxb4 {
[%emt 0:02:21]} Rcxb4 {[%emt 0:00:32]} 27. Ree2 {[%emt 0:00:32]} h5 {[%emt 0:
00:00]} 28. g3 {[%emt 0:00:54]} g5 {[%emt 0:00:13]} 29. Ke3 {[%emt 0:05:10]}
Rb3+ {[%emt 0:00:25]} 30. Kf2 {[%emt 0:01:43]} R8b4 {[%emt 0:00:11]} 31. Kg2 {
[%emt 0:13:52]} Kg7 {[%emt 0:01:05]} 32. Rf2 {[%emt 0:01:04]} Kg6 {[%emt 0:00:
00]} 33. Rc2 {[%emt 0:04:00]} Kf5 {[%emt 0:06:07]} 34. Rfe2 {[%emt 0:02:00]}
Rd3 {[%emt 0:03:20]} 35. Rc7 {[%emt 0:01:06]} Kg6 {[%emt 0:00:02]} 36. Rf2 {
[%emt 0:04:35]} Rdb3 {[%emt 0:01:46]} 37. Rcc2 {[%emt 0:01:39]} d4 {[%emt 0:00:
00]} 38. Rcd2 {[%emt 0:00:47]} d3 {[%emt 0:00:36]} 39. f4 {[%emt 0:01:06]} g4 {
[%emt 0:01:19]} 40. h3 {[%emt 0:00:32]} Kf5 {[%emt 0:00:23]} 41. hxg4+ {
[%emt 0:01:35]} hxg4 {[%emt 0:00:23]} 42. Kf1 {[%emt 0:03:04]} Rc4 {[%emt 0:00:
00]} 43. Rh2 {[%emt 0:08:26]} Ke4 {[%emt 0:03:05]} 44. Rhf2 {[%emt 0:02:22]}
Rc1+ {[%emt 0:02:05]} 45. Kg2 {[%emt 0:00:10]} Ke3 {[%emt 0:00:25]} 46. Kh2 {
[%emt 0:00:11]} Re1 {[%emt 0:00:21]} 0-1

[Event "44th Chess Olympiad Women 2022"]
[Site "Chennai"]
[Date "2022.08.06"]
[Round "8.43"]
[White "Berezovska, Svetlana"]
[Black "Mutisya, Jully"]
[Result "1-0"]
[WhiteElo "1781"]
[BlackElo "1428"]
[Annotator "NA RC"]
[PlyCount "101"]
[EventDate "2022.??.??"]
[TimeControl "60"]

1. e4 {[%emt 0:00:03]} d6 {[%emt 0:00:25]} 2. d4 {[%emt 0:00:04]} Nf6 {[%emt 0:
00:00]} 3. Nc3 {[%emt 0:00:05]} g6 {[%emt 0:00:24]} 4. Be3 {[%emt 0:00:48]} Bg7
{[%emt 0:00:48]} 5. h3 {[%emt 0:01:04]} O-O {[%emt 0:04:36]} 6. Nf3 {[%emt 0:
00:00]} c6 {[%emt 0:02:05]} 7. a4 {[%emt 0:00:33]} Nbd7 {[%emt 0:01:26]} 8. Be2
{[%emt 0:00:59]} e5 {[%emt 0:00:40]} 9. dxe5 {[%emt 0:01:03]} dxe5 {[%emt 0:00:
00]} 10. Nd2 {[%emt 0:01:06]} Qe7 {[%emt 0:03:20]} 11. Nc4 {[%emt 0:02:17]} Rd8
{[%emt 0:07:20]} 12. Qd6 {[%emt 0:02:50]} Qxd6 {[%emt 0:09:53]} 13. Nxd6 {
[%emt 0:00:07]} Nf8 {[%emt 0:02:33]} 14. Nxc8 {[%emt 0:05:50]} Raxc8 {[%emt 0:
00:00]} 15. Bxa7 {[%emt 0:14:45]} Ne6 {[%emt 0:00:57]} 16. Be3 {[%emt 0:01:59]}
Nd4 {[%emt 0:00:57]} 17. Bd3 {[%emt 0:11:25]} c5 {[%emt 0:08:46]} 18. O-O-O {
[%emt 0:06:13]} c4 {[%emt 0:05:14]} 19. Bf1 {[%emt 0:01:26]} Bf8 {[%emt 0:00:
00]} 20. Bg5 {[%emt 0:10:20]} Be7 {[%emt 0:00:00]} 21. h4 {[%emt 0:07:58]} Kf8
{[%emt 0:06:22]} 22. Bxf6 {[%emt 0:02:21]} Bxf6 {[%emt 0:00:13]} 23. Nd5 {
[%emt 0:00:42]} Bg7 {[%emt 0:00:27]} 24. Nb6 {[%emt 0:08:59]} Nb3+ {[%emt 0:00:
00]} 25. cxb3 {[%emt 0:02:50]} cxb3+ {[%emt 0:03:34]} 26. Bc4 {[%emt 0:02:31]}
Rxc4+ {[%emt 0:03:13]} 27. Nxc4 {[%emt 0:00:32]} Rc8 {[%emt 0:00:08]} 28. Kb1 {
[%emt 0:05:31]} Rxc4 {[%emt 0:00:14]} 29. Rd3 {[%emt 0:00:33]} Rb4 {[%emt 0:00:
00]} 30. a5 {[%emt 0:06:13]} Ke7 {[%emt 0:02:32]} 31. Rhh3 {[%emt 0:01:13]} b6
{[%emt 0:02:18]} 32. Rxb3 {[%emt 0:01:22]} bxa5 {[%emt 0:00:29]} 33. Rxb4 {
[%emt 0:00:09]} axb4 {[%emt 0:00:39]} 34. Rb3 {[%emt 0:00:11]} Bf8 {[%emt 0:00:
00]} 35. Rxb4 {[%emt 0:00:19]} Ke6 {[%emt 0:00:16]} 36. Rb6+ {[%emt 0:01:03]}
Kd7 {[%emt 0:00:43]} 37. Rb7+ {[%emt 0:00:45]} Ke6 {[%emt 0:00:14]} 38. b4 {
[%emt 0:01:15]} f5 {[%emt 0:00:42]} 39. exf5+ {[%emt 0:00:17]} gxf5 {[%emt 0:
00:00]} 40. Kc2 {[%emt 0:00:51]} f4 {[%emt 0:01:14]} 41. Kd3 {[%emt 0:01:56]}
Kd5 {[%emt 0:00:50]} 42. f3 {[%emt 0:02:17]} h6 {[%emt 0:01:29]} 43. b5 {
[%emt 0:00:55]} Bc5 {[%emt 0:03:51]} 44. Rd7+ {[%emt 0:03:08]} Ke6 {[%emt 0:00:
00]} 45. Rh7 {[%emt 0:00:07]} Kf5 {[%emt 0:07:54]} 46. Rxh6 {[%emt 0:00:19]}
e4+ {[%emt 0:00:37]} 47. fxe4+ {[%emt 0:00:13]} Kg4 {[%emt 0:00:05]} 48. h5 {
[%emt 0:01:18]} Kg3 {[%emt 0:02:10]} 49. Rg6+ {[%emt 0:00:00]} Kh2 {[%emt 0:00:
00]} 50. h6 {[%emt 0:00:00]} Bf2 {[%emt 0:00:15]} 51. h7 {[%emt 0:00:24]} 1-0

[Event "44th Chess Olympiad Women 2022"]
[Site "Chennai"]
[Date "2022.08.06"]
[Round "8.43"]
[White "Berezovsky, Fiorina"]
[Black "Ndirangu, Joyce Nyaruai"]
[Result "0-1"]
[WhiteElo "1544"]
[BlackElo "1679"]
[Annotator "NA RC"]
[PlyCount "88"]
[EventDate "2022.??.??"]
[TimeControl "60"]

1. d4 {[%emt 0:00:07]} c5 {[%emt 0:00:14]} 2. c3 {[%emt 0:04:24]} b6 {[%emt 0:
00:00]} 3. dxc5 {[%emt 0:04:02]} bxc5 {[%emt 0:18:20]} 4. Qd5 {[%emt 0:06:38]}
Nc6 {[%emt 0:04:07]} 5. Qxc5 {[%emt 0:02:18]} Nf6 {[%emt 0:03:43]} 6. e3 {
[%emt 0:03:23]} e6 {[%emt 0:03:32]} 7. Qc4 {[%emt 0:04:25]} Bb7 {[%emt 0:02:07]
} 8. Nf3 {[%emt 0:01:51]} Be7 {[%emt 0:00:17]} 9. Be2 {[%emt 0:01:48]} a5 {
[%emt 0:00:28]} 10. Qa4 {[%emt 0:02:08]} O-O {[%emt 0:02:36]} 11. O-O {[%emt 0:
00:00]} Qc7 {[%emt 0:03:40]} 12. c4 {[%emt 0:05:52]} Rfc8 {[%emt 0:04:28]} 13.
Nc3 {[%emt 0:01:56]} Ne5 {[%emt 0:04:09]} 14. Nxe5 {[%emt 0:01:59]} Qxe5 {
[%emt 0:00:30]} 15. Qc2 {[%emt 0:03:19]} d5 {[%emt 0:05:26]} 16. f4 {[%emt 0:
00:00]} Qc7 {[%emt 0:04:29]} 17. cxd5 {[%emt 0:05:36]} Nxd5 {[%emt 0:07:04]}
18. Bd2 {[%emt 0:02:45]} Bc5 {[%emt 0:06:22]} 19. Nxd5 {[%emt 0:10:42]} Bxd5 {
[%emt 0:00:12]} 20. Qc3 {[%emt 0:04:21]} Qb7 {[%emt 0:00:36]} 21. Bf3 {[%emt 0:
00:00]} Rab8 {[%emt 0:10:08]} 22. Bxd5 {[%emt 0:01:41]} Qxd5 {[%emt 0:00:10]}
23. Rfd1 {[%emt 0:04:18]} Ba7 {[%emt 0:06:44]} 24. Qa3 {[%emt 0:02:14]} Rc2 {
[%emt 0:00:36]} 25. Qxa5 {[%emt 0:05:57]} Bxe3+ {[%emt 0:00:43]} 26. Kh1 {
[%emt 0:00:41]} Rxd2 {[%emt 0:00:14]} 27. Qxd5 {[%emt 0:00:28]} exd5 {[%emt 0:
00:00]} 28. Rxd2 {[%emt 0:00:51]} Bxd2 {[%emt 0:00:04]} 29. a4 {[%emt 0:00:49]}
Rxb2 {[%emt 0:00:53]} 30. g3 {[%emt 0:00:26]} Bc3 {[%emt 0:01:38]} 31. Rc1 {
[%emt 0:00:56]} d4 {[%emt 0:00:08]} 32. a5 {[%emt 0:00:32]} Ra2 {[%emt 0:00:07]
} 33. Rb1 {[%emt 0:00:26]} g6 {[%emt 0:00:18]} 34. Kg1 {[%emt 0:00:50]} Bxa5 {
[%emt 0:00:50]} 35. Rd1 {[%emt 0:00:20]} Kg7 {[%emt 0:00:09]} 36. Kf1 {[%emt 0:
00:00]} Bc3 {[%emt 0:00:23]} 37. h4 {[%emt 0:00:20]} h5 {[%emt 0:00:10]} 38.
Kg1 {[%emt 0:00:26]} Kf6 {[%emt 0:00:14]} 39. Rc1 {[%emt 0:00:31]} d3 {[%emt 0:
00:00]} 40. Rxc3 {[%emt 0:00:17]} d2 {[%emt 0:00:13]} 41. Rc6+ {[%emt 0:04:10]}
Kf5 {[%emt 0:00:32]} 42. Rc5+ {[%emt 0:00:14]} Kg4 {[%emt 0:00:08]} 43. Rd5 {
[%emt 0:00:16]} Kf3 {[%emt 0:00:26]} 44. Rd3+ {[%emt 0:03:08]} Ke2 {[%emt 0:00:
00]} 0-1

[Event "44th Chess Olympiad Women 2022"]
[Site "Chennai"]
[Date "2022.08.06"]
[Round "8.43"]
[White "Madelta Glenda"]
[Black "Lebel-Arias, Julia"]
[Result "1-0"]
[WhiteElo "1516"]
[BlackElo "1660"]
[Annotator "NA RC"]
[PlyCount "89"]
[EventDate "2022.??.??"]
[TimeControl "60"]

1. d4 {[%emt 0:00:05]} g6 {[%emt 0:00:10]} 2. Bf4 {[%emt 0:00:10]} d6 {[%emt 0:
00:00]} 3. Nc3 {[%emt 0:00:19]} Bg7 {[%emt 0:00:12]} 4. Qd2 {[%emt 0:00:46]} c6
{[%emt 0:00:17]} 5. Nf3 {[%emt 0:03:06]} Nd7 {[%emt 0:00:49]} 6. h4 {[%emt 0:
00:00]} Ndf6 {[%emt 0:00:53]} 7. e4 {[%emt 0:00:53]} Nh5 {[%emt 0:00:17]} 8.
Be3 {[%emt 0:03:00]} a6 {[%emt 0:01:57]} 9. Bc4 {[%emt 0:06:03]} h6 {[%emt 0:
00:00]} 10. Be2 {[%emt 0:03:35]} Bg4 {[%emt 0:02:12]} 11. O-O-O {[%emt 0:05:21]
} Ngf6 {[%emt 0:02:11]} 12. Nh2 {[%emt 0:00:40]} Qc8 {[%emt 0:04:45]} 13. e5 {
[%emt 0:05:52]} Bxe2 {[%emt 0:03:44]} 14. Qxe2 {[%emt 0:15:19]} dxe5 {[%emt 0:
00:00]} 15. dxe5 {[%emt 0:00:31]} Nd5 {[%emt 0:04:45]} 16. Nxd5 {[%emt 0:01:34]
} cxd5 {[%emt 0:00:11]} 17. g4 {[%emt 0:00:32]} Bxe5 {[%emt 0:00:28]} 18. gxh5
{[%emt 0:00:34]} Bxh2 {[%emt 0:00:14]} 19. Rxh2 {[%emt 0:00:19]} Qc6 {[%emt 0:
00:00]} 20. Qd2 {[%emt 0:05:50]} O-O-O {[%emt 0:02:50]} 21. Qb4 {[%emt 0:07:57]
} e5 {[%emt 0:05:22]} 22. Qg4+ {[%emt 0:00:46]} Kb8 {[%emt 0:04:25]} 23. f3 {
[%emt 0:03:25]} d4 {[%emt 0:00:27]} 24. Rhd2 {[%emt 0:00:45]} Qf6 {[%emt 0:00:
00]} 25. Bf2 {[%emt 0:00:35]} Rhg8 {[%emt 0:02:14]} 26. hxg6 {[%emt 0:05:54]}
fxg6 {[%emt 0:03:41]} 27. Bg3 {[%emt 0:03:31]} Ka8 {[%emt 0:00:10]} 28. Qe4 {
[%emt 0:00:22]} Rde8 {[%emt 0:02:35]} 29. Re1 {[%emt 0:00:59]} Qf7 {[%emt 0:00:
00]} 30. Kb1 {[%emt 0:01:04]} Rgf8 {[%emt 0:00:19]} 31. Rd3 {[%emt 0:00:34]}
Qf5 {[%emt 0:01:29]} 32. Bxe5 {[%emt 0:04:53]} Qxe4 {[%emt 0:02:42]} 33. Rxe4 {
[%emt 0:03:40]} g5 {[%emt 0:01:14]} 34. hxg5 {[%emt 0:00:25]} hxg5 {[%emt 0:00:
00]} 35. Kc1 {[%emt 0:00:32]} g4 {[%emt 0:04:04]} 36. fxg4 {[%emt 0:01:08]}
Rf1+ {[%emt 0:00:19]} 37. Rd1 {[%emt 0:00:47]} Rf2 {[%emt 0:01:03]} 38. Rdxd4 {
[%emt 0:01:06]} Rf1+ {[%emt 0:01:21]} 39. Kd2 {[%emt 0:00:35]} Rf2+ {[%emt 0:
00:00]} 40. Kc3 {[%emt 0:00:44]} b5 {[%emt 0:01:28]} 41. Rd7 {[%emt 0:31:54]}
a5 {[%emt 0:31:21]} 42. Kb3 {[%emt 0:02:02]} a4+ {[%emt 0:02:06]} 43. Kb4 {
[%emt 0:00:25]} Rxc2 {[%emt 0:00:27]} 44. Kxb5 {[%emt 0:00:19]} Rxb2+ {[%emt 0:
00:00]} 45. Ka6 {[%emt 0:00:30]} 1-0

[Event "44th Chess Olympiad Women 2022"]
[Site "Chennai"]
[Date "2022.08.06"]
[Round "8.43"]
[White "Mongeli, Sasha"]
[Black "Dubois, Martine"]
[Result "1-0"]
[WhiteElo "1672"]
[BlackElo "1782"]
[Annotator "NA RC"]
[PlyCount "111"]
[EventDate "2022.??.??"]
[TimeControl "60"]

1. Nf3 {[%emt 0:00:21]} d5 {[%emt 0:00:06]} 2. e3 {[%emt 0:01:42]} g6 {[%emt 0:
00:00]} 3. c4 {[%emt 0:03:13]} Nf6 {[%emt 0:03:46]} 4. b3 {[%emt 0:02:02]} Bg7
{[%emt 0:00:33]} 5. Bb2 {[%emt 0:03:20]} c6 {[%emt 0:01:57]} 6. Be2 {[%emt 0:
00:00]} O-O {[%emt 0:00:41]} 7. O-O {[%emt 0:00:36]} Nbd7 {[%emt 0:07:08]} 8.
d3 {[%emt 0:01:46]} Re8 {[%emt 0:02:51]} 9. cxd5 {[%emt 0:08:12]} cxd5 {
[%emt 0:04:35]} 10. d4 {[%emt 0:01:11]} Ne4 {[%emt 0:04:15]} 11. Nbd2 {[%emt 0:
00:00]} Ndf6 {[%emt 0:02:26]} 12. Rc1 {[%emt 0:04:37]} Bf5 {[%emt 0:06:03]} 13.
Nh4 {[%emt 0:05:01]} Bd7 {[%emt 0:05:45]} 14. Nhf3 {[%emt 0:04:40]} Qa5 {
[%emt 0:03:21]} 15. a3 {[%emt 0:04:05]} Rec8 {[%emt 0:01:10]} 16. b4 {[%emt 0:
00:00]} Qd8 {[%emt 0:02:58]} 17. Nxe4 {[%emt 0:05:58]} Nxe4 {[%emt 0:00:58]}
18. Qb3 {[%emt 0:05:13]} Bg4 {[%emt 0:03:37]} 19. Rfd1 {[%emt 0:03:39]} e6 {
[%emt 0:04:12]} 20. b5 {[%emt 0:05:01]} Ng5 {[%emt 0:07:39]} 21. a4 {[%emt 0:
00:00]} Bf8 {[%emt 0:02:47]} 22. Qd3 {[%emt 0:03:54]} Bf5 {[%emt 0:07:06]} 23.
Qd2 {[%emt 0:05:02]} Ne4 {[%emt 0:02:55]} 24. Qe1 {[%emt 0:01:59]} Bd6 {
[%emt 0:01:51]} 25. h3 {[%emt 0:02:07]} h5 {[%emt 0:01:49]} 26. Rxc8 {[%emt 0:
00:00]} Rxc8 {[%emt 0:00:19]} 27. Rc1 {[%emt 0:00:27]} Rxc1 {[%emt 0:03:15]}
28. Qxc1 {[%emt 0:00:21]} Bb4 {[%emt 0:04:42]} 29. Ba3 {[%emt 0:06:07]} Nc3 {
[%emt 0:02:08]} 30. Bf1 {[%emt 0:01:57]} Qa5 {[%emt 0:04:06]} 31. Bxb4 {
[%emt 0:03:36]} Qxb4 {[%emt 0:00:09]} 32. Ne5 {[%emt 0:00:27]} Qb3 {[%emt 0:00:
00]} 33. a5 {[%emt 0:01:00]} Bc2 {[%emt 0:03:16]} 34. Nd7 {[%emt 0:01:48]} Na2
{[%emt 0:01:16]} 35. Qe1 {[%emt 0:01:07]} Bd3 {[%emt 0:00:46]} 36. Nc5 {
[%emt 0:00:23]} Qxb5 {[%emt 0:02:08]} 37. Bxd3 {[%emt 0:00:17]} Qc6 {[%emt 0:
00:00]} 38. Qd2 {[%emt 0:00:57]} b6 {[%emt 0:00:14]} 39. Qxa2 {[%emt 0:00:42]}
bxc5 {[%emt 0:00:06]} 40. dxc5 {[%emt 0:00:11]} Qxc5 {[%emt 0:00:11]} 41. Qa4 {
[%emt 0:30:35]} Qc1+ {[%emt 0:31:07]} 42. Bf1 {[%emt 0:00:09]} Qc7 {[%emt 0:00:
00]} 43. Qb5 {[%emt 0:00:43]} Kg7 {[%emt 0:00:40]} 44. Qa6 {[%emt 0:00:47]} e5
{[%emt 0:00:39]} 45. Qb5 {[%emt 0:00:45]} d4 {[%emt 0:00:57]} 46. exd4 {
[%emt 0:00:24]} exd4 {[%emt 0:00:03]} 47. Bc4 {[%emt 0:00:00]} d3 {[%emt 0:00:
00]} 48. Bxd3 {[%emt 0:00:00]} Kh6 {[%emt 0:00:00]} 49. Bc4 {[%emt 0:00:00]}
Qf4 {[%emt 0:00:00]} 50. Qc5 {[%emt 0:00:00]} Qc1+ {[%emt 0:00:00]} 51. Kh2 {
[%emt 0:00:00]} f5 {[%emt 0:00:00]} 52. Qf8+ {[%emt 0:00:00]} Kh7 {[%emt 0:00:
00]} 53. Bg8+ {[%emt 0:00:00]} Kh8 {[%emt 0:00:00]} 54. Bf7+ {[%emt 0:00:00]}
Kh7 {[%emt 0:00:00]} 55. Qg8+ {[%emt 0:00:00]} Kh6 {[%emt 0:00:00]} 56. Qxg6# {
[%emt 0:00:00]} 1-0